Workbook

Sheet Cover

Sheet Parameters
C2: Parameters for deriving performance requirements
C3: Ideal Span Threshold | D3: 2 | E3: dB
C4: Impairment Span Threshold | D4: 4 | E4: dB
B7: Notes | C7: 1. Call function DerivingPerfReq()
C8: 2. If the ruls does not apply, or fails, -100dB or less will be returned
D9: -100 | E9: Not enough input
D10: -101 | E10: Input should be pairs
D11: -102 | E11: Too large span for impairment
D12: -103 | E12: After removal iteration, not enough input

Sheet FR1 PUSCH high reliability
A1: Test | B1: Duplex mode | C1: Aggregation factor | D1: waveform | E1: MCS level | F1: Tx/Rx | G1: Propagation condition | H1: DMRS | I1: SCS | J1: BW | K1: PUSCH mapping type | L1: 38.104 req | M1: 38.141 req | N1: Samsung | P1: DoCoMo | R1: Intel | T1: Nokia | V1: Huawei | X1: Ericsson | Z1: SPAN | AB1: AVERAGE
N2: Ideal | O2: Impairment | P2: Ideal | Q2: Impairment | R2: Ideal | S2: Impairment | T2: Ideal | U2: Impairment | V2: Ideal | W2: Impairment | X2: Ideal | Y2: Impairment | Z2: Ideal | AA2: Impairment | AB2: Ideal | AC2: Impairment
A3: Test 1.1 | B3: FDD | C3: n2 | D3: CP-OFDM | E3: Table 3, MCS5 | F3: 1T2R | G3: TDLB100-400 | H3: DMRS 1+1 | I3: 15kHz | J3: 5MHz | K3: type A | L3: =DerivingPerfReq(N3:Y3) -> -8.5 | M3: =IF(L3>-100,L3+0.6,L3) -> -7.9 | N3: -11.3 | O3: -9.3 | R3: -9 | S3: -7.5 | T3: -10 | U3: -7.5 | V3: -10.3 | W3: -8.3 | X3: -10.9 | Y3: -8.9 | Z3: =MAX(N3,P3,R3,T3,V3,X3)-MIN(N3,P3,R3,T3,V3,X3) -> 2.3 | AA3: 1.8 | AB3: =AVERAGE(N3,P3,R3,T3,V3,X3) -> -10.3 | AC3: -8.3
K4: type B | L4: =DerivingPerfReq(N4:Y4) -> -8.2 | M4: -7.6 | N4: -11 | O4: -9 | R4: -9 | S4: -7.5 | T4: -9.8 | U4: -7.3 | V4: -10.3 | W4: -8.3 | X4: -10.9 | Y4: -8.9 | Z4: 2 | AA4: 1.7 | AB4: -10.2 | AC4: -8.2
J5: 10MHz | K5: type A | L5: -9.3 | M5: -8.7 | N5: -11.9 | O5: -9.9 | R5: -9.6 | S5: -8.1 | T5: -10.2 | U5: -7.7 | V5: -11.5 | W5: -9.5 | X5: -12.1 | Y5: -10.1 | Z5: 2.5 | AA5: 2.4 | AB5: -11.06 | AC5: -9.06
K6: type B | L6: -9.8 | M6: -9.2 | N6: -11.8 | O6: -9.8 | R6: -9.5 | S6: -8 | T6: -9.9 | U6: -7.4 | V6: -11.5 | W6: -9.5 | X6: -12.1 | Y6: -10.1 | Z6: 2.6 | AA6: 2.7 | AB6: -10.96 | AC6: -8.96
B7: TDD | C7: n8 | D7: CP-OFDM | E7: Table 3, MCS5 | F7: 1T2R | G7: TDLB100-400 | H7: DMRS 1+1 | J7: 5MHz | K7: type A | L7: -8.2 | M7: -7.6 | R7: -8.9 | S7: -7.4 | T7: -12.9 | U7: -10.4 | V7: -10.2 | W7: -8.4 | X7: -10.9 | Y7: -8.9 | Z7: =MAX(N7,P7,R7,T7,V7,X7)-MIN(N7,P7,R7,T7,V7,X7) -> 4 | AA7: 3 | AB7: -10.725 | AC7: -8.775
K8: type B | L8: -8.2 | M8: -7.6 | R8: -8.9 | S8: -7.4 | T8: -12.7 | U8: -10.2 | V8: -10.2 | W8: -8.4 | X8: -10.9 | Y8: -8.9 | Z8: 3.8 | AA8: 2.8 | AB8: -10.675 | AC8: -8.725
J9: 10MHz | K9: type A | L9: -103 | M9: -103 | R9: -9.6 | S9: -8.1 | T9: -13.4 | U9: -10.9 | V9: -11.2 | W9: -9.2 | X9: -12.4 | Y9: -10.4 | Z9: 3.8 | AA9: 2.8 | AB9: -11.65 | AC9: -9.65
K10: type B | L10: -10.1 | M10: -9.5 | R10: -9.6 | S10: -8 | T10: -13.2 | U10: -10.7 | V10: -11.2 | W10: -9.2 | X10: -12.4 | Y10: -10.4 | Z10: 3.6 | AA10: 2.7 | AB10: -11.6 | AC10: -9.575
A11: Test 1.2 | B11: FDD | C11: n2 | D11: CP-OFDM | E11: Table 3, MCS5 | F11: 1T2R | G11: TDLB100-400 | H11: DMRS 1+1 | I11: 30kHz | J11: 10MHz | K11: type A | L11: =DerivingPerfReq(N11:Y11) -> -8.2 | M11: =IF(L11>-100,L11+0.6,L11) -> -7.6 | N11: -12.2 | O11: -10.2 | R11: -9.8 | S11: -8.3 | T11: -12.9 | U11: -10.4 | V11: -10.7 | W11: -8.7 | X11: -9.6 | Y11: -7.6 | Z11: =MAX(N11,P11,R11,T11,V11,X11)-MIN(N11,P11,R11,T11,V11,X11) -> 3.3 | AA11: =MAX(O11,Q11,S11,U11,W11,Y11)-MIN(O11,Q11,S11,U11,W11,Y11) -> 2.8 | AB11: =AVERAGE(N11,P11,R11,T11,V11,X11) -> -11.04 | AC11: =AVERAGE(O11,Q11,S11,U11,W11,Y11) -> -9.04
K12: type B | L12: -8.2 | M12: -7.6 | N12: -12.1 | O12: -10.1 | R12: -9.8 | S12: -8.3 | T12: -12.9 | U12: -10.4 | V12: -10.7 | W12: -8.7 | X12: -9.6 | Y12: -7.6 | Z12: 3.3 | AA12: 2.8 | AB12: -11.02 | AC12: -9.02
J13: 40MHz | K13: type A | L13: -10.3 | M13: -9.7 | N13: -13 | O13: -11 | R13: -10.1 | S13: -8.6 | T13: -13 | U13: -10.5 | V13: -11.5 | W13: -9.5 | X13: -10.8 | Y13: -8.8 | Z13: 2.9 | AA13: 2.4 | AB13: -11.68 | AC13: -9.68
K14: type B | L14: -10.2 | M14: -9.6 | N14: -12.9 | O14: -10.9 | R14: -10.1 | S14: -8.6 | T14: -12.8 | U14: -10.3 | V14: -11.5 | W14: -9.5 | X14: -10.8 | Y14: -8.8 | Z14: 2.8 | AA14: 2.3 | AB14: -11.62 | AC14: -9.62
B15: TDD | C15: n2 | D15: CP-OFDM | E15: Table 3, MCS5 | F15: 1T2R | G15: TDLB100-400 | H15: DMRS 1+1 | J15: 10MHz | K15: type A | L15: =DerivingPerfReq(N15:Y15) -> -100 | M15: =IF(L15>-100,L15+0.6,L15) -> -100 | R15: -9.6 | S15: -8.1 | Z15: =MAX(N15,P15,R15,T15,V15,X15)-MIN(N15,P15,R15,T15,V15,X15) -> 0 | AA15: =MAX(O15,Q15,S15,U15,W15,Y15)-MIN(O15,Q15,S15,U15,W15,Y15) -> 0 | AB15: =AVERAGE(N15,P15,R15,T15,V15,X15) -> -9.6 | AC15: =AVERAGE(O15,Q15,S15,U15,W15,Y15) -> -8.1
K16: type B | L16: -100 | M16: -100 | R16: -9.5 | S16: -8 | Z16: 0 | AA16: 0 | AB16: -9.5 | AC16: -8
J17: 40MHz | K17: type A | L17: -100 | M17: -100 | R17: -9.9 | S17: -8.4 | Z17: 0 | AA17: 0 | AB17: -9.9 | AC17: -8.4
K18: type B | L18: -100 | M18: -100 | R18: -9.8 | S18: -8.3 | Z18: 0 | AA18: 0 | AB18: -9.8 | AC18: -8.3

Sheet FR1 PUSCH low latency
A1: Test | B1: Symbol length | C1: waveform | D1: Tx/Rx | E1: PUSCH mapping type | F1: MCS level | G1: Propagation condition | H1: DMRS | I1: SCS | J1: BW | K1: 38.104 req | L1: 38.141 req | M1: Samsung | O1: DoCoMo | Q1: Intel | S1: Nokia | U1: Huawei | W1: Ericsson | Y1: SPAN | AA1: AVERAGE
M2: Ideal | N2: Impairment | O2: Ideal | P2: Impairment | Q2: Ideal | R2: Impairment | S2: Ideal | T2: Impairment | U2: Ideal | V2: Impairment | W2: Ideal | X2: Impairment | Y2: Ideal | Z2: Impairment | AA2: Ideal | AB2: Impairment
A3: Test 2.1 | B3: 2os | C3: CP-OFDM | D3: 1T2R | E3: type B | F3: Table 3, MCS10 | G3: TDLC300-100 | H3: DMRS 1+0 | I3: 15kHz | J3: 5MHz | K3: =DerivingPerfReq(M3:X3) -> 0.6 | L3: =IF(K3>-100,K3+0.6,K3) -> 1.2 | M3: -1.26 | N3: 0.74 | Q3: -1 | R3: 0.5 | S3: -1.7 | T3: 0.8 | U3: -1.5 | V3: 0.5 | W3: -1.6 | X3: 0.4 | Y3: =MAX(M3,O3,Q3,S3,U3,W3)-MIN(M3,O3,Q3,S3,U3,W3) -> 0.7 | Z3: =MAX(N3,P3,R3,T3,V3,X3)-MIN(N3,P3,R3,T3,V3,X3) -> 0.4 | AA3: =AVERAGE(M3,O3,Q3,S3,U3,W3) -> -1.412 | AB3: =AVERAGE(N3,P3,R3,T3,V3,X3) -> 0.588
J4: 10MHz | K4: =DerivingPerfReq(M4:X4) -> 0.2 | L4: =IF(K4>-100,K4+0.6,K4) -> 0.8 | M4: -1.71 | N4: 0.29 | Q4: -1.5 | R4: 0 | S4: -2.3 | T4: 0.2 | U4: -1.9 | V4: 0.1 | W4: -1.7 | X4: 0.3 | Y4: =MAX(M4,O4,Q4,S4,U4,W4)-MIN(M4,O4,Q4,S4,U4,W4) -> 0.8 | Z4: 0.3 | AA4: =AVERAGE(M4,O4,Q4,S4,U4,W4) -> -1.822 | AB4: 0.178
A5: Test 2.2 | B5: 2os | C5: CP-OFDM | D5: 1T2R | E5: type B | F5: Table 3, MCS10 | G5: TDLC300-100 | H5: DMRS 1+0 | I5: 30kHz | J5: 10MHz | K5: =DerivingPerfReq(M5:X5) -> 0.4 | L5: =IF(K5>-100,K5+0.6,K5) -> 1 | M5: -1.27 | N5: 0.73 | Q5: -1.2 | R5: 0.3 | S5: -1.8 | T5: 0.7 | U5: -2 | V5: 0 | W5: -1.9 | X5: 0.1 | Y5: 0.8 | Z5: 0.73 | AA5: -1.634 | AB5: 0.366
J6: 40MHz | K6: =DerivingPerfReq(M6:X6) -> -0.1 | L6: =IF(K6>-100,K6+0.6,K6) -> 0.5 | M6: -1.68 | N6: 0.32 | Q6: -1.3 | R6: 0.2 | S6: -2.5 | T6: 0 | U6: -2.8 | V6: -0.8 | W6: -2 | X6: 0 | Y6: 1.5 | Z6: 1.12 | AA6: -2.056 | AB6: -0.056

Sheet FR2 PUSCH high reliability
A1: Test | B1: Duplex mode | C1: Aggregation factor | D1: waveform | E1: MCS level | F1: Tx/Rx | G1: PUSCH mapping type | H1: SCS | I1: BW | J1: DMRS | K1: Propagation condition | L1: 38.104 req | M1: 38.141 req | N1: Samsung | P1: DoCoMo | R1: Intel | T1: Nokia | V1: Huawei | X1: Ericsson | Z1: SPAN | AB1: AVERAGE
N2: Ideal | O2: Impairment | P2: Ideal | Q2: Impairment | R2: Ideal | S2: Impairment | T2: Ideal | U2: Impairment | V2: Ideal | W2: Impairment | X2: Ideal | Y2: Impairment | Z2: Ideal | AA2: Impairment | AB2: Ideal | AC2: Impairment
A3: Test 3.1 | B3: TDD | C3: n8 | D3: CP-OFDM | E3: Table 3, MCS5 | F3: 1T2R | G3: type B | H3: 60KHz | I3: 50MHz | J3: DMRS 1+1 | K3: TDLA30-75 | L3: =DerivingPerfReq(N3:Y3) -> -100 | M3: =IF(L3>-100,L3+0.6,L3) -> -100 | T3: -9.4 | U3: -6.9 | V3: -12.4 | W3: -10.4 | Z3: =MAX(N3,P3,R3,T3,V3,X3)-MIN(N3,P3,R3,T3,V3,X3) -> 3 | AA3: =MAX(O3,Q3,S3,U3,W3,Y3)-MIN(O3,Q3,S3,U3,W3,Y3) -> 3.5 | AB3: =AVERAGE(N3,P3,R3,T3,V3,X3) -> -10.9 | AC3: =AVERAGE(O3,Q3,S3,U3,W3,Y3) -> -8.65
K4: TDLA30-300 | L4: -100 | M4: -100 | T4: -10.2 | U4: -7.7 | V4: -13.8 | W4: -11.8 | Z4: 3.6 | AA4: 4.1 | AB4: -12 | AC4: -9.75
J5: DMRS 1+0 | K5: TDLA30-75 | L5: =DerivingPerfReq(N5:Y5) -> -100 | M5: =IF(L5>-100,L5+0.6,L5) -> -100 | T5: -9.3 | U5: -6.8 | Z5: =MAX(N5,P5,R5,T5,V5,X5)-MIN(N5,P5,R5,T5,V5,X5) -> 0 | AA5: 0 | AB5: =AVERAGE(N5,P5,R5,T5,V5,X5) -> -9.3 | AC5: -6.8
K6: TDLA30-300 | L6: -100 | M6: -100 | T6: -10.1 | U6: -7.6 | Z6: 0 | AA6: 0 | AB6: -10.1 | AC6: -7.6
A7: Test 3.2 | B7: TDD | C7: n8 | D7: CP-OFDM | E7: Table 3, MCS5 | F7: 1T2R | G7: type B | I7: 100MHz | J7: DMRS 1+1 | K7: TDLA30-75 | L7: -100 | M7: -100 | Z7: 0 | AA7: 0
K8: TDLA30-300 | L8: -100 | M8: -100 | Z8: 0 | AA8: 0
J9: DMRS 1+0 | K9: TDLA30-75 | L9: =DerivingPerfReq(N9:Y9) -> -100 | M9: =IF(L9>-100,L9+0.6,L9) -> -100 | Z9: =MAX(N9,P9,R9,T9,V9,X9)-MIN(N9,P9,R9,T9,V9,X9) -> 0 | AA9: =MAX(O9,Q9,S9,U9,W9,Y9)-MIN(O9,Q9,S9,U9,W9,Y9) -> 0 | AB9: =AVERAGE(N9,P9,R9,T9,V9,X9) ->  | AC9: =AVERAGE(O9,Q9,S9,U9,W9,Y9) -> 
K10: TDLA30-300 | L10: -100 | M10: -100 | Z10: 0 | AA10: 0
A11: Test 3.3 | B11: TDD | C11: n8 | D11: CP-OFDM | E11: Table 3, MCS5 | F11: 1T2R | G11: type B | H11: 120KHz | I11: 50MHz | J11: DMRS 1+1 | K11: TDLA30-75 | L11: -100 | M11: -100 | T11: -7.7 | U11: -5.2 | V11: -10.4 | W11: -8.4 | Z11: 2.7 | AA11: 3.2 | AB11: -9.05 | AC11: -6.8
K12: TDLA30-300 | L12: -100 | M12: -100 | T12: -8.2 | U12: -5.7 | V12: -12 | W12: -10 | Z12: 3.8 | AA12: 4.3 | AB12: -10.1 | AC12: -7.85
J13: DMRS 1+0 | K13: TDLA30-75 | L13: -100 | M13: -100 | T13: -7.8 | U13: -5.3 | Z13: 0 | AA13: 0 | AB13: -7.8 | AC13: -5.3
K14: TDLA30-300 | L14: -100 | M14: -100 | T14: -8.2 | U14: -5.7 | Z14: 0 | AA14: 0 | AB14: -8.2 | AC14: -5.7
A15: Test 3.4 | B15: TDD | C15: n8 | D15: CP-OFDM | E15: Table 3, MCS5 | F15: 1T2R | G15: type B | I15: 100MHz | J15: DMRS 1+1 | K15: TDLA30-75 | L15: -100 | M15: -100 | Z15: 0 | AA15: 0
K16: TDLA30-300 | L16: -100 | M16: -100 | Z16: 0 | AA16: 0
J17: DMRS 1+0 | K17: TDLA30-75 | L17: =DerivingPerfReq(N17:Y17) -> -100 | M17: =IF(L17>-100,L17+0.6,L17) -> -100 | Z17: =MAX(N17,P17,R17,T17,V17,X17)-MIN(N17,P17,R17,T17,V17,X17) -> 0 | AA17: =MAX(O17,Q17,S17,U17,W17,Y17)-MIN(O17,Q17,S17,U17,W17,Y17) -> 0 | AB17: =AVERAGE(N17,P17,R17,T17,V17,X17) ->  | AC17: =AVERAGE(O17,Q17,S17,U17,W17,Y17) -> 
K18: TDLA30-300 | L18: -100 | M18: -100 | Z18: 0 | AA18: 0

Sheet FR2 PUSCH low latency
A1: Test | B1: waveform | C1: Tx/Rx | D1: PUSCH mapping type | E1: MCS level | F1: Propagation condition | G1: Symbol length | H1: DMRS | I1: SCS | J1: BW | K1: 38.104 req | L1: 38.141 req | M1: Samsung | O1: DoCoMo | Q1: Intel | S1: Nokia | U1: Huawei | W1: Ericsson | Y1: SPAN | AA1: AVERAGE
M2: Ideal | N2: Impairment | O2: Ideal | P2: Impairment | Q2: Ideal | R2: Impairment | S2: Ideal | T2: Impairment | U2: Ideal | V2: Impairment | W2: Ideal | X2: Impairment | Y2: Ideal | Z2: Impairment | AA2: Ideal | AB2: Impairment
A3: Test 4.1 | B3: CP-OFDM | C3: 1T2R | D3: type B | E3: Table 3, MCS10 | F3: TDLC300-100 | G3: 2os | H3: DMRS 1+0 | I3: 60kHz | J3: 50MHz | K3: =DerivingPerfReq(M3:X3) -> -100 | L3: =IF(K3>-100,K3+0.6,K3) -> -100 | S3: -1.3 | T3: 1.2 | W3: -1.6 | X3: 0.4 | Y3: =MAX(M3,O3,Q3,S3,U3,W3)-MIN(M3,O3,Q3,S3,U3,W3) -> 0.3 | Z3: =MAX(N3,P3,R3,T3,V3,X3)-MIN(N3,P3,R3,T3,V3,X3) -> 0.8 | AA3: =AVERAGE(M3,O3,Q3,S3,U3,W3) -> -1.45 | AB3: =AVERAGE(N3,P3,R3,T3,V3,X3) -> 0.8
G4: 4os | S4: -1.3 | T4: 1.2
G5: 7os | K5: =DerivingPerfReq(M5:X5) -> -100 | L5: =IF(K5>-100,K5+0.6,K5) -> -100 | S5: -1.5 | T5: 1 | Y5: =MAX(M5,O5,Q5,S5,U5,W5)-MIN(M5,O5,Q5,S5,U5,W5) -> 0 | Z5: 0 | AA5: =AVERAGE(M5,O5,Q5,S5,U5,W5) -> -1.5 | AB5: 1
G6: 7os | H6: DMRS 1+1 | K6: =DerivingPerfReq(M6:X6) -> -100 | L6: =IF(K6>-100,K6+0.6,K6) -> -100 | S6: -1.4 | T6: 1.1 | Y6: 0 | Z6: 0 | AA6: -1.4 | AB6: 1.1
B7: CP-OFDM | C7: 1T2R | D7: type B | E7: Table 3, MCS5 | F7: TDLC300-100 | G7: 2os | H7: DMRS 1+0 | K7: =DerivingPerfReq(M7:X7) -> -100 | L7: =IF(K7>-100,K7+0.6,K7) -> -100 | S7: -5.4 | T7: -2.9 | Y7: =MAX(M7,O7,Q7,S7,U7,W7)-MIN(M7,O7,Q7,S7,U7,W7) -> 0 | Z7: =MAX(N7,P7,R7,T7,V7,X7)-MIN(N7,P7,R7,T7,V7,X7) -> 0 | AA7: =AVERAGE(M7,O7,Q7,S7,U7,W7) -> -5.4 | AB7: =AVERAGE(N7,P7,R7,T7,V7,X7) -> -2.9
G8: 4os | S8: -5.6 | T8: -3.1 | W8: -6.6 | X8: -4.6
G9: 7os | K9: =DerivingPerfReq(M9:X9) -> -100 | L9: =IF(K9>-100,K9+0.6,K9) -> -100 | S9: -5.5 | T9: -3 | Y9: =MAX(M9,O9,Q9,S9,U9,W9)-MIN(M9,O9,Q9,S9,U9,W9) -> 0 | Z9: =MAX(N9,P9,R9,T9,V9,X9)-MIN(N9,P9,R9,T9,V9,X9) -> 0 | AA9: =AVERAGE(M9,O9,Q9,S9,U9,W9) -> -5.5 | AB9: =AVERAGE(N9,P9,R9,T9,V9,X9) -> -3
G10: 7os | H10: DMRS 1+1 | K10: =DerivingPerfReq(M10:X10) -> -100 | L10: =IF(K10>-100,K10+0.6,K10) -> -100 | S10: -5.6 | T10: -3.1 | U10: -7.1 | V10: -5.1 | Y10: 1.5 | Z10: 2 | AA10: -6.35 | AB10: -4.1
A11: Test 4.2 | B11: CP-OFDM | C11: 1T2R | D11: type B | E11: Table 3, MCS10 | F11: TDLC300-100 | G11: 2os | H11: DMRS 1+0 | I11: 60kHz | J11: 100MHz | K11: =DerivingPerfReq(M11:X11) -> -100 | L11: =IF(K11>-100,K11+0.6,K11) -> -100 | Y11: =MAX(M11,O11,Q11,S11,U11,W11)-MIN(M11,O11,Q11,S11,U11,W11) -> 0 | Z11: =MAX(N11,P11,R11,T11,V11,X11)-MIN(N11,P11,R11,T11,V11,X11) -> 0 | AA11: =AVERAGE(M11,O11,Q11,S11,U11,W11) ->  | AB11: =AVERAGE(N11,P11,R11,T11,V11,X11) -> 
G12: 4os
G13: 7os | K13: =DerivingPerfReq(M13:X13) -> -100 | L13: =IF(K13>-100,K13+0.6,K13) -> -100 | Y13: =MAX(M13,O13,Q13,S13,U13,W13)-MIN(M13,O13,Q13,S13,U13,W13) -> 0 | Z13: =MAX(N13,P13,R13,T13,V13,X13)-MIN(N13,P13,R13,T13,V13,X13) -> 0 | AA13: =AVERAGE(M13,O13,Q13,S13,U13,W13) ->  | AB13: =AVERAGE(N13,P13,R13,T13,V13,X13) -> 
G14: 7os | H14: DMRS 1+1 | K14: =DerivingPerfReq(M14:X14) -> -100 | L14: =IF(K14>-100,K14+0.6,K14) -> -100 | Y14: 0 | Z14: 0
B15: CP-OFDM | C15: 1T2R | D15: type B | E15: Table 3, MCS5 | F15: TDLC300-100 | G15: 2os | H15: DMRS 1+0 | K15: =DerivingPerfReq(M15:X15) -> -100 | L15: =IF(K15>-100,K15+0.6,K15) -> -100 | Y15: =MAX(M15,O15,Q15,S15,U15,W15)-MIN(M15,O15,Q15,S15,U15,W15) -> 0 | Z15: =MAX(N15,P15,R15,T15,V15,X15)-MIN(N15,P15,R15,T15,V15,X15) -> 0 | AA15: =AVERAGE(M15,O15,Q15,S15,U15,W15) ->  | AB15: =AVERAGE(N15,P15,R15,T15,V15,X15) -> 
G16: 4os
G17: 7os | K17: =DerivingPerfReq(M17:X17) -> -100 | L17: =IF(K17>-100,K17+0.6,K17) -> -100 | Y17: =MAX(M17,O17,Q17,S17,U17,W17)-MIN(M17,O17,Q17,S17,U17,W17) -> 0 | Z17: =MAX(N17,P17,R17,T17,V17,X17)-MIN(N17,P17,R17,T17,V17,X17) -> 0 | AA17: =AVERAGE(M17,O17,Q17,S17,U17,W17) ->  | AB17: =AVERAGE(N17,P17,R17,T17,V17,X17) -> 
G18: 7os | H18: DMRS 1+1 | K18: =DerivingPerfReq(M18:X18) -> -100 | L18: =IF(K18>-100,K18+0.6,K18) -> -100 | U18: -7.8 | V18: -5.8 | Y18: 0 | Z18: 0 | AA18: -7.8 | AB18: -5.8
A19: Test 4.3 | B19: CP-OFDM | C19: 1T2R | D19: type B | E19: Table 3, MCS10 | F19: TDLC300-100 | G19: 2os | H19: DMRS 1+0 | I19: 120kHz | J19: 50MHz | K19: =DerivingPerfReq(M19:X19) -> -100 | L19: =IF(K19>-100,K19+0.6,K19) -> -100 | S19: -0.4 | T19: 2.1 | W19: -1.5 | X19: 0.5 | Y19: =MAX(M19,O19,Q19,S19,U19,W19)-MIN(M19,O19,Q19,S19,U19,W19) -> 1.1 | Z19: =MAX(N19,P19,R19,T19,V19,X19)-MIN(N19,P19,R19,T19,V19,X19) -> 1.6 | AA19: =AVERAGE(M19,O19,Q19,S19,U19,W19) -> -0.95 | AB19: =AVERAGE(N19,P19,R19,T19,V19,X19) -> 1.3
G20: 4os | S20: -0.5 | T20: 2
G21: 7os | K21: =DerivingPerfReq(M21:X21) -> -100 | L21: =IF(K21>-100,K21+0.6,K21) -> -100 | S21: -0.7 | T21: 1.8 | Y21: =MAX(M21,O21,Q21,S21,U21,W21)-MIN(M21,O21,Q21,S21,U21,W21) -> 0 | Z21: =MAX(N21,P21,R21,T21,V21,X21)-MIN(N21,P21,R21,T21,V21,X21) -> 0 | AA21: =AVERAGE(M21,O21,Q21,S21,U21,W21) -> -0.7 | AB21: =AVERAGE(N21,P21,R21,T21,V21,X21) -> 1.8
G22: 7os | H22: DMRS 1+1 | K22: =DerivingPerfReq(M22:X22) -> -100 | L22: =IF(K22>-100,K22+0.6,K22) -> -100 | S22: -0.5 | T22: 2 | Y22: 0 | Z22: 0 | AA22: -0.5 | AB22: 2
B23: CP-OFDM | C23: 1T2R | D23: type B | E23: Table 3, MCS5 | F23: TDLC300-100 | G23: 2os | H23: DMRS 1+0 | K23: =DerivingPerfReq(M23:X23) -> -100 | L23: =IF(K23>-100,K23+0.6,K23) -> -100 | S23: -4.1 | T23: -1.6 | Y23: =MAX(M23,O23,Q23,S23,U23,W23)-MIN(M23,O23,Q23,S23,U23,W23) -> 0 | Z23: =MAX(N23,P23,R23,T23,V23,X23)-MIN(N23,P23,R23,T23,V23,X23) -> 0 | AA23: =AVERAGE(M23,O23,Q23,S23,U23,W23) -> -4.1 | AB23: =AVERAGE(N23,P23,R23,T23,V23,X23) -> -1.6
G24: 4os | S24: -4.3 | T24: -1.8 | W24: -5.4 | X24: -3.4
G25: 7os | K25: =DerivingPerfReq(M25:X25) -> -100 | L25: =IF(K25>-100,K25+0.6,K25) -> -100 | S25: -4.2 | T25: -1.7 | Y25: =MAX(M25,O25,Q25,S25,U25,W25)-MIN(M25,O25,Q25,S25,U25,W25) -> 0 | Z25: =MAX(N25,P25,R25,T25,V25,X25)-MIN(N25,P25,R25,T25,V25,X25) -> 0 | AA25: =AVERAGE(M25,O25,Q25,S25,U25,W25) -> -4.2 | AB25: =AVERAGE(N25,P25,R25,T25,V25,X25) -> -1.7
G26: 7os | H26: DMRS 1+1 | K26: =DerivingPerfReq(M26:X26) -> -100 | L26: =IF(K26>-100,K26+0.6,K26) -> -100 | S26: -4.2 | T26: -1.7 | U26: -7.1 | V26: -5.1 | Y26: 2.9 | Z26: 3.4 | AA26: -5.65 | AB26: -3.4
A27: Test 4.4 | B27: CP-OFDM | C27: 1T2R | D27: type B | E27: Table 3, MCS10 | F27: TDLC300-100 | G27: 2os | H27: DMRS 1+0 | I27: 120kHz | J27: 100MHz | K27: =DerivingPerfReq(M27:X27) -> -100 | L27: =IF(K27>-100,K27+0.6,K27) -> -100 | Y27: =MAX(M27,O27,Q27,S27,U27,W27)-MIN(M27,O27,Q27,S27,U27,W27) -> 0 | Z27: =MAX(N27,P27,R27,T27,V27,X27)-MIN(N27,P27,R27,T27,V27,X27) -> 0 | AA27: =AVERAGE(M27,O27,Q27,S27,U27,W27) ->  | AB27: =AVERAGE(N27,P27,R27,T27,V27,X27) -> 
G28: 4os
G29: 7os | K29: =DerivingPerfReq(M29:X29) -> -100 | L29: =IF(K29>-100,K29+0.6,K29) -> -100 | Y29: =MAX(M29,O29,Q29,S29,U29,W29)-MIN(M29,O29,Q29,S29,U29,W29) -> 0 | Z29: =MAX(N29,P29,R29,T29,V29,X29)-MIN(N29,P29,R29,T29,V29,X29) -> 0 | AA29: =AVERAGE(M29,O29,Q29,S29,U29,W29) ->  | AB29: =AVERAGE(N29,P29,R29,T29,V29,X29) -> 
G30: 7os | H30: DMRS 1+1 | K30: =DerivingPerfReq(M30:X30) -> -100 | L30: =IF(K30>-100,K30+0.6,K30) -> -100 | Y30: 0 | Z30: 0
B31: CP-OFDM | C31: 1T2R | D31: type B | E31: Table 3, MCS5 | F31: TDLC300-100 | G31: 2os | H31: DMRS 1+0 | K31: =DerivingPerfReq(M31:X31) -> -100 | L31: =IF(K31>-100,K31+0.6,K31) -> -100 | Y31: =MAX(M31,O31,Q31,S31,U31,W31)-MIN(M31,O31,Q31,S31,U31,W31) -> 0 | Z31: =MAX(N31,P31,R31,T31,V31,X31)-MIN(N31,P31,R31,T31,V31,X31) -> 0 | AA31: =AVERAGE(M31,O31,Q31,S31,U31,W31) ->  | AB31: =AVERAGE(N31,P31,R31,T31,V31,X31) -> 
G32: 4os
G33: 7os | K33: =DerivingPerfReq(M33:X33) -> -100 | L33: =IF(K33>-100,K33+0.6,K33) -> -100 | U33: -7.7 | V33: -5.7 | Y33: =MAX(M33,O33,Q33,S33,U33,W33)-MIN(M33,O33,Q33,S33,U33,W33) -> 0 | Z33: =MAX(N33,P33,R33,T33,V33,X33)-MIN(N33,P33,R33,T33,V33,X33) -> 0 | AA33: =AVERAGE(M33,O33,Q33,S33,U33,W33) -> -7.7 | AB33: =AVERAGE(N33,P33,R33,T33,V33,X33) -> -5.7
G34: 7os | H34: DMRS 1+1 | K34: =DerivingPerfReq(M34:X34) -> -100 | L34: =IF(K34>-100,K34+0.6,K34) -> -100 | Y34: 0 | Z34: 0
